[Event "Istanbul Open 2017"]
[Site "Istanbul"]
[Date "2017.09.11"]
[Round "1"]
[White "Iyti, Basher"]
[Black "Bai, Bashar"]
[Result "1-0"]
[ECO "D02"]
[WhiteElo "2303"]
[BlackElo "1918"]
[Annotator "RC"]
[PlyCount "95"]
[EventDate "2017.??.??"]
[EventType "swiss"]
[EventCountry "TUR"]
[SourceTitle "playchess.com"]
[Source "ChessBase"]
[SourceQuality "1"]
[TimeControl "5400+30"]

1. d4 {[%emt 0:00:30]} d5 {[%emt 0:01:00]} 2. Nf3 {[%emt 0:00:30]} Nf6 {[%emt 0:00:30]} 3. Bg5 {[%emt 0:00:30]} c6 {[%emt 0:01:30]} 4. c3 {[%emt 0:02:30]} Bf5 {[%emt 0:02:30]} 5. Nbd2 {[%emt 0:01:30]} Nbd7 {[%emt 0:01:30]} 6. Nh4 {[%emt 0:04:30]} Bg6 {[%emt 0:00:30]} 7. Nxg6 {[%emt 0:02:30]} hxg6 {[%emt 0:00:30]} 8. Qc2 {[%emt 0:02:30]} Qc7 {[%emt 0:02:30]} 9. g3 {[%emt 0:04:30]} e6 {[%emt 0:06:30]} 10. Bg2 {[%emt 0:02:30]} c5 {[%emt 0:11:30]} 11. Qb3 {[%emt 0:10:30]} Qb6 {[%emt 0:17:30]} 12. O-O {[%emt 0:09:30]} Nh7 {[%emt 0:11:30]} 13. Bf4 {[%emt 0:02:30]} g5 {[%emt 0:00:30]} 14. Be3 {[%emt 0:01:30]} Be7 {[%emt 0:03:30]} 15. Qa4 {[%emt 0:10:30]} Qc6 {[%emt 0:04:30]} 16. Qd1 {[%emt 0:00:00]} c4 {[%emt 0:03:30]} 17. b3 {[%emt 0:02:00]} b5 {[%emt 0:00:30]} 18. a4 {[%emt 0:00:30]} Nb6 {[%emt 0:03:30]} 19. axb5 {[%emt 0:00:30]} Qxb5 {[%emt 0:00:30]} 20. bxc4 {[%emt 0:10:30]} Nxc4 {[%emt 0:00:30]} 21. Nxc4 {[%emt 0:04:30]} Qxc4 {[%emt 0:00:30]} 22. Bd2 {[%emt 0:01:30]} O-O {[%emt 0:04:30]} 23. e4 {[%emt 0:00:30]} Rfd8 {[%emt 0:02:30]} 24. Re1 {[%emt 0:05:30]} Qc7 {[%emt 0:05:56]} 25. exd5 {[%emt 0:00:36]} exd5 {[%emt 0:00:08]} 26. c4 {[%emt 0:00:35]} dxc4 {[%emt 0:01:56]} 27. Ba5 {[%emt 0:00:44]} Qd7 {[%emt 0:00:31]} 28. Qe2 {[%emt 0:04:11]} Bf6 {[%emt 0:00:39]} 29. Bxa8 {[%emt 0:01:25]} Rxa8 {[%emt 0:00:23]} 30. Qxc4 {[%emt 0:01:24]} g4 {[%emt 0:00:42]} 31. Qa4 {[%emt 0:01:07]} Qd5 {[%emt 0:01:55]} 32. Re8+ {[%emt 0:00:35]} Nf8 {[%emt 0:00:54]} 33. Bb4 {[%emt 0:07:16]} Bxd4 {[%emt 0:02:56]} 34. Rf1 {[%emt 0:01:52]} Rxe8 {[%emt 0:04:20]} 35. Qxe8 {[%emt 0:00:06]} Bc5 {[%emt 0:00:15]} 36. Bxc5 {[%emt 0:00:12]} Qxc5 {[%emt 0:00:08]} 37. Ra1 {[%emt 0:01:11]} Qd4 {[%emt 0:01:31]} 38. Qa4 {[%emt 0:00:09]} Ne6 {[%emt 0:01:31]} 39. Qxd4 {[%emt 0:00:18]} Nxd4 {[%emt 0:00:13]} 40. Rxa7 {[%emt 0:00:35]} Nf3+ {[%emt 0:00:23]} 41. Kg2 {[%emt 0:00:47]} Ne1+ {[%emt 0:00:13]} 42. Kh1 {[%emt 0:00:14]} Nf3 {[%emt 0:00:52]} 43. Ra4 {[%emt 0:00:43]} Ne5 {[%emt 0:00:47]} 44. Kg2 {[%emt 0:00:25]} g6 {[%emt 0:00:54]} 45. Re4 {[%emt 0:00:46]} f6 {[%emt 0:00:10]} 46. h3 {[%emt 0:00:14]} gxh3+ {[%emt 0:00:43]} 47. Kxh3 {[%emt 0:00:05]} g5 {[%emt 0:01:05]} 48. Rxe5 {[%emt 0:00:22]} 1-0

[Event "Istanbul Open 2017"]
[Site "Istanbul"]
[Date "2017.09.11"]
[Round "1"]
[White "Seyit, Ersel"]
[Black "Goktas, Ibrahim Can"]
[Result "1/2-1/2"]
[ECO "C56"]
[WhiteElo "1736"]
[BlackElo "1405"]
[Annotator "NA RC"]
[PlyCount "74"]
[EventDate "2017.??.??"]
[EventType "swiss"]
[EventCountry "TUR"]
[SourceTitle "playchess.com"]
[Source "ChessBase"]
[SourceQuality "1"]
[TimeControl "5400+30"]

1. e4 {[%emt 0:00:30]} e5 {[%emt 0:00:00]} 2. Nf3 {[%emt 0:00:00]} Nc6 {[%emt 0:00:30]} 3. d4 {[%emt 0:00:00]} exd4 {[%emt 0:00:00]} 4. Bc4 {[%emt 0:00:00]} Nf6 {[%emt 0:00:00]} 5. O-O {[%emt 0:00:00]} d5 {[%emt 0:03:30]} 6. exd5 {[%emt 0:02:30]} Nxd5 {[%emt 0:06:30]} 7. Re1+ {[%emt 0:01:30]} Be7 {[%emt 0:01:30]} 8. Nxd4 {[%emt 0:02:30]} O-O {[%emt 0:03:30]} 9. Bxd5 {[%emt 0:01:30]} Qxd5 {[%emt 0:00:30]} 10. Nxc6 {[%emt 0:00:30]} Qxc6 {[%emt 0:02:30]} 11. Rxe7 {[%emt 0:01:30]} Be6 {[%emt 0:00:30]} 12. Rxe6 {[%emt 0:04:30]} Qxe6 {[%emt 0:00:00]} 13. Be3 {[%emt 0:00:30]} Rad8 {[%emt 0:02:00]} 14. Qe2 {[%emt 0:06:30]} f5 {[%emt 0:09:30]} 15. Nc3 {[%emt 0:00:30]} Rfe8 {[%emt 0:00:00]} 16. Qf3 {[%emt 0:01:30]} b6 {[%emt 0:08:00]} 17. h3 {[%emt 0:01:30]} h6 {[%emt 0:06:30]} 18. Rd1 {[%emt 0:09:30]} Rxd1+ {[%emt 0:03:30]} 19. Qxd1 {[%emt 0:00:30]} c6 {[%emt 0:00:30]} 20. Qd4 {[%emt 0:02:30]} g5 {[%emt 0:09:30]} 21. g3 {[%emt 0:05:30]} Re7 {[%emt 0:16:30]} 22. Kh2 {[%emt 0:07:30]} Rd7 {[%emt 0:04:30]} 23. Qa4 {[%emt 0:00:30]} Qd6 {[%emt 0:02:30]} 24. Qc4+ {[%emt 0:01:30]} Kg7 {[%emt 0:01:04]} 25. Ne2 {[%emt 0:02:30]} c5 {[%emt 0:00:32]} 26. Nc3 {[%emt 0:04:30]} Qe5 {[%emt 0:01:17]} 27. Qe2 {[%emt 0:09:30]} Re7 {[%emt 0:02:56]} 28. Qf3 {[%emt 0:00:30]} Rf7 {[%emt 0:01:13]} 29. Qd5 {[%emt 0:03:30]} Qe7 {[%emt 0:05:06]} 30. Bd2 {[%emt 0:03:30]} Qe8 {[%emt 0:02:33]} 31. Nb1 {[%emt 0:02:30]} Qe2 {[%emt 0:01:39]} 32. Bc3+ {[%emt 0:00:30]} Kg8 {[%emt 0:00:40]} 33. Kg2 {[%emt 0:02:30]} f4 {[%emt 0:04:16]} 34. Nd2 {[%emt 0:00:30]} fxg3 {[%emt 0:00:36]} 35. Qa8+ {[%emt 0:03:30]} Rf8 {[%emt 0:00:36]} 36. Qd5+ {[%emt 0:00:30]} Rf7 {[%emt 0:00:13]} 37. Qd8+ {[%emt 0:02:20]} Rf8 {[%emt 0:00:21]} 1/2-1/2

[Event "Istanbul Open 2017"]
[Site "Istanbul"]
[Date "2017.09.11"]
[Round "1"]
[White "Satici, Aydin"]
[Black "Sarikaya, Eser"]
[Result "1-0"]
[ECO "A01"]
[WhiteElo "1726"]
[BlackElo "1346"]
[Annotator "NA RC"]
[PlyCount "75"]
[EventDate "2017.??.??"]
[EventType "swiss"]
[EventCountry "TUR"]
[SourceTitle "playchess.com"]
[Source "ChessBase"]
[SourceQuality "1"]
[TimeControl "5400+30"]

1. b3 {[%emt 0:00:30]} e5 {[%emt 0:02:00]} 2. Bb2 {[%emt 0:00:30]} Nc6 {[%emt 0:01:30]} 3. e3 {[%emt 0:00:30]} d6 {[%emt 0:02:30]} 4. c4 {[%emt 0:02:30]} Nf6 {[%emt 0:02:30]} 5. d4 {[%emt 0:01:30]} exd4 {[%emt 0:02:30]} 6. exd4 {[%emt 0:00:00]} d5 {[%emt 0:02:30]} 7. Nf3 {[%emt 0:01:00]} Bb4+ {[%emt 0:04:30]} 8. Nbd2 {[%emt 0:00:30]} O-O {[%emt 0:01:30]} 9. Be2 {[%emt 0:00:00]} Ne4 {[%emt 0:07:30]} 10. Rc1 {[%emt 0:04:00]} Bg4 {[%emt 0:02:30]} 11. O-O {[%emt 0:00:30]} Nxd2 {[%emt 0:05:30]} 12. Nxd2 {[%emt 0:00:30]} Bxe2 {[%emt 0:01:30]} 13. Qxe2 {[%emt 0:00:00]} Re8 {[%emt 0:01:30]} 14. Qd3 {[%emt 0:03:00]} dxc4 {[%emt 0:01:30]} 15. bxc4 {[%emt 0:00:30]} Ne5 {[%emt 0:02:30]} 16. Qc2 {[%emt 0:00:30]} Ng4 {[%emt 0:04:30]} 17. Nf3 {[%emt 0:02:30]} Bd6 {[%emt 0:12:30]} 18. h3 {[%emt 0:03:30]} Nf6 {[%emt 0:01:30]} 19. Rfe1 {[%emt 0:03:30]} c6 {[%emt 0:10:30]} 20. Rcd1 {[%emt 0:05:30]} Rxe1+ {[%emt 0:04:30]} 21. Rxe1 {[%emt 0:00:30]} Qd7 {[%emt 0:09:05]} 22. Ne5 {[%emt 0:02:30]} Re8 {[%emt 0:05:31]} 23. Bc3 {[%emt 0:00:30]} Qc7 {[%emt 0:01:17]} 24. Qf5 {[%emt 0:05:30]} c5 {[%emt 0:03:10]} 25. d5 {[%emt 0:02:30]} Bxe5 {[%emt 0:04:14]} 26. Bxe5 {[%emt 0:00:30]} Qd8 {[%emt 0:01:26]} 27. Re3 {[%emt 0:07:30]} Nd7 {[%emt 0:02:02]} 28. Qf4 {[%emt 0:05:30]} Nxe5 {[%emt 0:01:26]} 29. Rxe5 {[%emt 0:00:30]} Kf8 {[%emt 0:00:06]} 30. Rxe8+ {[%emt 0:03:30]} Kxe8 {[%emt 0:00:12]} 31. Qe5+ {[%emt 0:02:30]} Kd7 {[%emt 0:00:51]} 32. Qxg7 {[%emt 0:01:30]} Qe7 {[%emt 0:00:57]} 33. Qg4+ {[%emt 0:03:30]} Kc7 {[%emt 0:00:23]} 34. Qg3+ {[%emt 0:00:30]} Qd6 {[%emt 0:00:06]} 35. Qf3 {[%emt 0:05:30]} Qe7 {[%emt 0:00:38]} 36. Qf4+ {[%emt 0:00:30]} Kd7 {[%emt 0:00:41]} 37. Kf1 {[%emt 0:02:30]} a6 {[%emt 0:00:45]} 38. Qb8 {[%emt 0:01:30]} 1-0

[Event "Istanbul Open 2017"]
[Site "Istanbul"]
[Date "2017.09.11"]
[Round "1"]
[White "Demir, Aleyna"]
[Black "Yapici, Mustafa"]
[Result "1/2-1/2"]
[ECO "B02"]
[WhiteElo "1415"]
[BlackElo "1730"]
[Annotator "NA RC"]
[PlyCount "104"]
[EventDate "2017.??.??"]
[EventType "swiss"]
[EventCountry "TUR"]
[SourceTitle "playchess.com"]
[Source "ChessBase"]
[SourceQuality "1"]
[TimeControl "5400+30"]

1. e4 {[%emt 0:00:30]} Nf6 {[%emt 0:01:00]} 2. Nc3 {[%emt 0:00:30]} d5 {[%emt 0:00:30]} 3. e5 {[%emt 0:01:30]} Ne4 {[%emt 0:01:30]} 4. d4 {[%emt 0:04:30]} Nxc3 {[%emt 0:13:30]} 5. bxc3 {[%emt 0:00:30]} e6 {[%emt 0:00:00]} 6. Nf3 {[%emt 0:03:30]} b6 {[%emt 0:01:00]} 7. g3 {[%emt 0:03:30]} Ba6 {[%emt 0:01:30]} 8. Bxa6 {[%emt 0:02:30]} Nxa6 {[%emt 0:01:30]} 9. Qd3 {[%emt 0:00:30]} Nb8 {[%emt 0:00:30]} 10. O-O {[%emt 0:00:30]} Be7 {[%emt 0:02:30]} 11. Be3 {[%emt 0:02:30]} O-O {[%emt 0:03:30]} 12. Nd2 {[%emt 0:03:30]} c5 {[%emt 0:00:30]} 13. f4 {[%emt 0:02:30]} c4 {[%emt 0:00:30]} 14. Qe2 {[%emt 0:00:30]} Qd7 {[%emt 0:00:30]} 15. g4 {[%emt 0:02:30]} f5 {[%emt 0:00:30]} 16. Rf2 {[%emt 0:01:30]} Nc6 {[%emt 0:02:30]} 17. Rg2 {[%emt 0:01:30]} Ba3 {[%emt 0:00:30]} 18. Rf1 {[%emt 0:03:30]} b5 {[%emt 0:06:30]} 19. Nb1 {[%emt 0:07:30]} Be7 {[%emt 0:00:00]} 20. gxf5 {[%emt 0:00:30]} Rxf5 {[%emt 0:01:00]} 21. Qg4 {[%emt 0:03:30]} Bf8 {[%emt 0:02:30]} 22. Nd2 {[%emt 0:00:30]} Qf7 {[%emt 0:03:30]} 23. Nf3 {[%emt 0:02:30]} Be7 {[%emt 0:00:30]} 24. h4 {[%emt 0:02:30]} b4 {[%emt 0:00:30]} 25. cxb4 {[%emt 0:04:30]} Nxb4 {[%emt 0:00:30]} 26. a3 {[%emt 0:00:30]} Nc6 {[%emt 0:00:30]} 27. Kh1 {[%emt 0:01:30]} Rb8 {[%emt 0:01:30]} 28. Rfg1 {[%emt 0:00:30]} Bf8 {[%emt 0:01:30]} 29. Ng5 {[%emt 0:00:30]} Qe8 {[%emt 0:00:30]} 30. Nf3 {[%emt 0:03:30]} Rb7 {[%emt 0:03:30]} 31. Qh3 {[%emt 0:00:30]} Bxa3 {[%emt 0:01:30]} 32. Rg5 {[%emt 0:00:30]} Rxg5 {[%emt 0:04:30]} 33. Nxg5 {[%emt 0:00:30]} Nd8 {[%emt 0:01:30]} 34. f5 {[%emt 0:02:30]} exf5 {[%emt 0:00:30]} 35. Qxf5 {[%emt 0:01:30]} g6 {[%emt 0:04:30]} 36. Qf3 {[%emt 0:04:30]} Rd7 {[%emt 0:05:30]} 37. h5 {[%emt 0:01:30]} Ne6 {[%emt 0:00:30]} 38. Nh3 {[%emt 0:06:30]} Bf8 {[%emt 0:08:30]} 39. Qg2 {[%emt 0:02:30]} Bg7 {[%emt 0:02:30]} 40. hxg6 {[%emt 0:02:30]} hxg6 {[%emt 0:00:30]} 41. Qxg6 {[%emt 0:00:30]} Qxg6 {[%emt 0:00:30]} 42. Rxg6 {[%emt 0:00:00]} Kf7 {[%emt 0:00:00]} 43. Rg1 {[%emt 0:01:00]} a5 {[%emt 0:00:00]} 44. Ng5+ {[%emt 0:00:30]} Nxg5 {[%emt 0:00:30]} 45. Bxg5 {[%emt 0:00:00]} a4 {[%emt 0:01:30]} 46. Bc1 {[%emt 0:04:00]} Ra7 {[%emt 0:05:30]} 47. Ba3 {[%emt 0:01:01]} Ra6 {[%emt 0:06:15]} 48. Rf1+ {[%emt 0:01:31]} Ke6 {[%emt 0:01:07]} 49. Rg1 {[%emt 0:00:24]} Kf7 {[%emt 0:00:25]} 50. Rf1+ {[%emt 0:00:12]} Ke6 {[%emt 0:01:32]} 51. Rg1 {[%emt 0:00:50]} Kf7 {[%emt 0:00:08]} 52. Rf1+ {[%emt 0:00:07]} Ke6 {[%emt 0:02:38]} 1/2-1/2

[Event "Istanbul Open 2017"]
[Site "Istanbul"]
[Date "2017.09.11"]
[Round "1"]
[White "Bogaz, Mustafa"]
[Black "Eken, Atakan"]
[Result "1/2-1/2"]
[ECO "D37"]
[WhiteElo "1392"]
[BlackElo "1728"]
[Annotator "NA RC"]
[PlyCount "97"]
[EventDate "2017.??.??"]
[EventType "swiss"]
[EventCountry "TUR"]
[SourceTitle "playchess.com"]
[Source "ChessBase"]
[SourceQuality "1"]
[TimeControl "5400+30"]

1. c4 {[%emt 0:00:30]} Nf6 {[%emt 0:01:00]} 2. Nc3 {[%emt 0:00:00]} e6 {[%emt 0:00:00]} 3. d4 {[%emt 0:02:00]} d5 {[%emt 0:02:00]} 4. Bf4 {[%emt 0:01:30]} c6 {[%emt 0:02:30]} 5. e3 {[%emt 0:03:30]} Be7 {[%emt 0:04:30]} 6. Nf3 {[%emt 0:03:30]} b6 {[%emt 0:01:30]} 7. cxd5 {[%emt 0:14:30]} exd5 {[%emt 0:04:30]} 8. Qa4 {[%emt 0:03:30]} Bb7 {[%emt 0:05:30]} 9. Ne5 {[%emt 0:08:30]} O-O {[%emt 0:00:30]} 10. Rc1 {[%emt 0:04:30]} Nh5 {[%emt 0:02:30]} 11. Bg3 {[%emt 0:07:30]} f6 {[%emt 0:23:30]} 12. Nd3 {[%emt 0:12:30]} Nxg3 {[%emt 0:07:30]} 13. hxg3 {[%emt 0:00:30]} Nd7 {[%emt 0:00:30]} 14. Nf4 {[%emt 0:03:30]} Rf7 {[%emt 0:09:30]} 15. Ne6 {[%emt 0:11:30]} Qb8 {[%emt 0:01:30]} 16. Bd3 {[%emt 0:06:16]} g6 {[%emt 0:02:30]} 17. Qc2 {[%emt 0:06:00]} Nf8 {[%emt 0:03:30]} 18. Nf4 {[%emt 0:07:09]} Rg7 {[%emt 0:01:30]} 19. Kd2 {[%emt 0:01:22]} Qd6 {[%emt 0:01:30]} 20. Rh6 {[%emt 0:00:55]} Kf7 {[%emt 0:01:30]} 21. Rch1 {[%emt 0:00:42]} c5 {[%emt 0:03:58]} 22. Rxh7 {[%emt 0:00:29]} Nxh7 {[%emt 0:04:14]} 23. Bxg6+ {[%emt 0:00:25]} Kf8 {[%emt 0:00:36]} 24. Bxh7 {[%emt 0:00:32]} Bd8 {[%emt 0:10:35]} 25. Bf5 {[%emt 0:00:31]} Ke7 {[%emt 0:02:34]} 26. Ng6+ {[%emt 0:00:35]} Kf7 {[%emt 0:00:22]} 27. Rh8 {[%emt 0:00:31]} Bc7 {[%emt 0:01:41]} 28. Qd1 {[%emt 0:00:31]} Rxh8 {[%emt 0:01:02]} 29. Nxh8+ {[%emt 0:00:01]} Ke7 {[%emt 0:00:21]} 30. Ng6+ {[%emt 0:00:55]} Kd8 {[%emt 0:01:12]} 31. Nb5 {[%emt 0:00:30]} Qc6 {[%emt 0:00:33]} 32. Nxa7 {[%emt 0:00:32]} Qe8 {[%emt 0:00:20]} 33. Qb3 {[%emt 0:00:31]} Rxg6 {[%emt 0:01:05]} 34. Bxg6 {[%emt 0:00:13]} Qxg6 {[%emt 0:00:30]} 35. dxc5 {[%emt 0:00:33]} f5 {[%emt 0:00:39]} 36. cxb6 {[%emt 0:00:45]} Bxb6 {[%emt 0:00:13]} 37. Nb5 {[%emt 0:00:27]} Ba5+ {[%emt 0:00:40]} 38. Nc3 {[%emt 0:00:20]} Kc8 {[%emt 0:00:45]} 39. Kc1 {[%emt 0:00:34]} Qc6 {[%emt 0:00:33]} 40. Qc2 {[%emt 0:00:27]} Kb8 {[%emt 0:00:23]} 41. Qxf5 {[%emt 0:00:41]} Bxc3 {[%emt 0:00:11]} 42. bxc3 {[%emt 0:00:16]} Qxc3+ {[%emt 0:00:06]} 43. Qc2 {[%emt 0:00:12]} Qe1+ {[%emt 0:00:09]} 44. Kb2 {[%emt 0:00:13]} Qb4+ {[%emt 0:00:05]} 45. Qb3 {[%emt 0:00:27]} Qd2+ {[%emt 0:00:11]} 46. Qc2 {[%emt 0:00:04]} Qb4+ {[%emt 0:00:16]} 47. Ka1 {[%emt 0:00:44]} Qe1+ {[%emt 0:00:07]} 48. Kb2 {[%emt 0:00:32]} Qb4+ {[%emt 0:00:09]} 49. Ka1 {[%emt 0:00:37]} 1/2-1/2

[Event "Istanbul Open 2017"]
[Site "Istanbul"]
[Date "2017.09.11"]
[Round "1"]
[White "Ozel, Suha"]
[Black "Coban, Suleyman"]
[Result "1/2-1/2"]
[ECO "A38"]
[WhiteElo "1391"]
[BlackElo "1676"]
[Annotator "NA RC"]
[PlyCount "81"]
[EventDate "2017.??.??"]
[EventType "swiss"]
[EventCountry "TUR"]
[SourceTitle "playchess.com"]
[Source "ChessBase"]
[SourceQuality "1"]
[TimeControl "5400+30"]

1. Nf3 {[%emt 0:00:30]} c5 {[%emt 0:01:00]} 2. g3 {[%emt 0:00:30]} Nf6 {[%emt 0:00:30]} 3. Bg2 {[%emt 0:00:30]} g6 {[%emt 0:00:30]} 4. O-O {[%emt 0:14:30]} Bg7 {[%emt 0:14:30]} 5. d3 {[%emt 0:00:30]} O-O {[%emt 0:00:30]} 6. c4 {[%emt 0:00:30]} Nc6 {[%emt 0:00:30]} 7. Nc3 {[%emt 0:00:30]} d6 {[%emt 0:00:30]} 8. Bd2 {[%emt 0:00:30]} a6 {[%emt 0:00:30]} 9. Qc1 {[%emt 0:00:30]} Re8 {[%emt 0:00:30]} 10. Rb1 {[%emt 0:00:30]} Rb8 {[%emt 0:01:30]} 11. Ne1 {[%emt 0:00:30]} Bd7 {[%emt 0:00:30]} 12. e4 {[%emt 0:00:30]} b5 {[%emt 0:01:30]} 13. Bg5 {[%emt 0:08:30]} Nd4 {[%emt 0:01:30]} 14. Nf3 {[%emt 0:00:30]} Nxf3+ {[%emt 0:12:30]} 15. Bxf3 {[%emt 0:00:30]} b4 {[%emt 0:00:30]} 16. Nd5 {[%emt 0:20:30]} Nxd5 {[%emt 0:27:30]} 17. exd5 {[%emt 0:00:30]} Bf5 {[%emt 0:00:30]} 18. Be4 {[%emt 0:00:30]} Bxe4 {[%emt 0:00:30]} 19. dxe4 {[%emt 0:00:30]} Qd7 {[%emt 0:00:30]} 20. Kg2 {[%emt 0:00:30]} a5 {[%emt 0:00:30]} 21. Be3 {[%emt 0:00:30]} a4 {[%emt 0:00:30]} 22. Qd1 {[%emt 0:01:30]} Ra8 {[%emt 0:04:30]} 23. f4 {[%emt 0:00:30]} e6 {[%emt 0:00:30]} 24. e5 {[%emt 0:00:30]} dxe5 {[%emt 0:00:30]} 25. fxe5 {[%emt 0:00:30]} exd5 {[%emt 0:00:30]} 26. Bxc5 {[%emt 0:00:30]} Rxe5 {[%emt 0:00:30]} 27. Bxb4 {[%emt 0:00:30]} d4 {[%emt 0:00:30]} 28. Qf3 {[%emt 0:01:30]} Rae8 {[%emt 0:00:30]} 29. Rbe1 {[%emt 0:00:30]} Rf5 {[%emt 0:03:30]} 30. Rxe8+ {[%emt 0:02:30]} Qxe8 {[%emt 0:00:30]} 31. Re1 {[%emt 0:00:30]} Qb8 {[%emt 0:00:30]} 32. Qa3 {[%emt 0:00:30]} Qa8+ {[%emt 0:00:30]} 33. Kg1 {[%emt 0:00:30]} Bh6 {[%emt 0:00:30]} 34. Bd6 {[%emt 0:01:30]} Be3+ {[%emt 0:09:26]} 35. Rxe3 {[%emt 0:00:00]} dxe3 {[%emt 0:00:02]} 36. Qxe3 {[%emt 0:00:00]} Rf6 {[%emt 0:02:04]} 37. Qd4 {[%emt 0:05:30]} Qf3 {[%emt 0:00:56]} 38. Bf4 {[%emt 0:00:30]} Re6 {[%emt 0:03:57]} 39. Qd8+ {[%emt 0:00:00]} Kg7 {[%emt 0:00:19]} 40. Qd4+ {[%emt 0:00:00]} Kg8 {[%emt 0:00:19]} 41. Qd8+ {[%emt 0:00:30]} 1/2-1/2

[Event "Istanbul Open 2017"]
[Site "Istanbul"]
[Date "2017.09.12"]
[Round "2"]
[White "Guseynov, Alihan"]
[Black "Sayin, Hakki"]
[Result "1-0"]
[ECO "D36"]
[WhiteElo "2333"]
[BlackElo "2014"]
[Annotator "RC"]
[PlyCount "91"]
[EventDate "2017.??.??"]
[EventType "swiss"]
[EventCountry "TUR"]
[SourceTitle "playchess.com"]
[Source "ChessBase"]
[SourceQuality "1"]
[TimeControl "5400+30"]

1. d4 d5 2. c4 e6 3. Nc3 Nf6 4. Bg5 Nbd7 5. cxd5 exd5 6. e3 c6 7. Bd3 Be7 8. Qc2 O-O 9. Nge2 Re8 10. O-O Ne4 11. Bxe4 dxe4 12. Bf4 Nf6 13. Nxe4 Nd5 14. Bg3 Nb4 15. Qd2 Bf8 16. N4c3 Bf5 17. f3 Qg5 18. Bf4 Qg6 19. e4 Be6 20. a3 Na6 21. Qc2 Rad8 {[%emt 1:09:00]} 22. Bg3 {[%emt 1:20:00]} Qh6 {[%emt 0:00:30]} 23. Rad1 {[%emt 0:00:30]} Bd6 {[%emt 0:00:30]} 24. Qc1 {[%emt 0:00:30]} Qxc1 {[%emt 0:00:30]} 25. Nxc1 {[%emt 0:00:30]} Bxg3 {[%emt 0:00:30]} 26. hxg3 {[%emt 0:00:30]} Nc7 {[%emt 0:00:30]} 27. g4 {[%emt 0:00:30]} Kf8 {[%emt 0:00:30]} 28. Kf2 {[%emt 0:00:30]} Bc4 {[%emt 0:00:30]} 29. Rh1 {[%emt 0:00:00]} h6 {[%emt 0:02:30]} 30. Ke3 {[%emt 0:02:34]} Nd5+ {[%emt 0:01:30]} 31. Nxd5 {[%emt 0:01:08]} cxd5 {[%emt 0:00:30]} 32. e5 {[%emt 0:01:14]} Rc8 {[%emt 0:01:30]} 33. Kd2 {[%emt 0:05:25]} Rc6 {[%emt 0:02:30]} 34. b3 {[%emt 0:00:30]} Ba6 {[%emt 0:00:00]} 35. Na2 {[%emt 0:02:46]} Rd8 {[%emt 0:07:15]} 36. Nb4 {[%emt 0:00:54]} Rb6 {[%emt 0:01:09]} 37. Rc1 {[%emt 0:00:55]} Bb5 {[%emt 0:00:18]} 38. Rc5 {[%emt 0:00:24]} Bc6 {[%emt 0:00:44]} 39. Rhc1 {[%emt 0:00:26]} Ke7 {[%emt 0:05:22]} 40. R1c3 {[%emt 0:00:23]} Ke6 {[%emt 0:05:28]} 41. Nxc6 {[%emt 0:00:16]} Rxc6 {[%emt 0:00:55]} 42. Rxc6+ {[%emt 0:00:07]} bxc6 {[%emt 0:00:02]} 43. Rxc6+ {[%emt 0:00:08]} Ke7 {[%emt 0:00:23]} 44. Rc7+ {[%emt 0:00:10]} Rd7 {[%emt 0:00:00]} 45. Rxd7+ {[%emt 0:00:37]} Kxd7 {[%emt 0:00:01]} 46. f4 {[%emt 0:00:00]} 1-0

[Event "Istanbul Open 2017"]
[Site "Istanbul"]
[Date "2017.09.12"]
[Round "2"]
[White "Elmas, Mustafa"]
[Black "Odabasi, Nail"]
[Result "1-0"]
[ECO "B02"]
[WhiteElo "1736"]
[BlackElo "1468"]
[Annotator "NA RC"]
[PlyCount "105"]
[EventDate "2017.??.??"]
[EventType "swiss"]
[EventCountry "TUR"]
[SourceTitle "playchess.com"]
[Source "ChessBase"]
[SourceQuality "1"]
[TimeControl "5400+30"]

1. e4 d5 2. exd5 Nf6 3. d4 Nxd5 4. Nc3 Bf5 5. Bd3 Nxc3 6. bxc3 Qd7 7. Nf3 Nc6 8. Bxf5 Qxf5 9. O-O e6 10. c4 Be7 11. Rb1 b6 12. Rb5 Qg6 13. d5 Rd8 14. Qe2 a6 15. Rb3 exd5 16. cxd5 Rxd5 17. Ba3 O-O 18. Bxe7 Re8 19. Re3 Rd7 20. Ba3 Rxe3 21. Qxe3 Qe6 22. Qc3 h6 23. Re1 Qd5 24. Bb2 f6 25. Qb3 Na5 26. Qxd5+ Rxd5 27. Kf1 Nc4 28. Bc1 Ra5 29. a3 Kf7 30. Rd1 Nd6 31. Rd3 Rc5 32. Nd4 Nb5 33. Nxb5 Rxb5 34. Ke2 {[%emt 1:12:00]} Rc5 {[%emt 1:12:30]} 35. c3 {[%emt 0:00:30]} b5 {[%emt 0:00:30]} 36. Be3 {[%emt 0:00:30]} Rc4 {[%emt 0:00:30]} 37. Bd2 {[%emt 0:00:30]} g5 {[%emt 0:00:30]} 38. Rd4 {[%emt 0:00:30]} Rc6 {[%emt 0:00:30]} 39. a4 {[%emt 0:00:30]} Re6+ {[%emt 0:00:30]} 40. Kd3 {[%emt 0:00:30]} c5 {[%emt 0:00:30]} 41. Rd7+ {[%emt 0:00:30]} Ke8 {[%emt 0:00:30]} 42. Rd5 {[%emt 0:00:30]} c4+ {[%emt 0:00:30]} 43. Kd4 {[%emt 0:00:30]} Re2 {[%emt 0:00:30]} 44. Be3 {[%emt 0:00:30]} Rb2 {[%emt 0:00:30]} 45. axb5 {[%emt 0:01:30]} axb5 {[%emt 0:00:30]} 46. Kc5 {[%emt 0:01:30]} Ke7 {[%emt 0:00:30]} 47. Bd4 {[%emt 0:00:30]} Ke6 {[%emt 0:01:30]} 48. Rd6+ {[%emt 0:00:00]} Kf5 {[%emt 0:00:00]} 49. Rxf6+ {[%emt 0:01:00]} Ke4 {[%emt 0:00:00]} 50. Rb6 {[%emt 0:02:30]} Kd3 {[%emt 0:02:30]} 51. Rxb5 {[%emt 0:00:30]} Rb3 {[%emt 0:01:30]} 52. Rxb3 {[%emt 0:01:30]} cxb3 {[%emt 0:00:00]} 53. c4 {[%emt 0:00:00]} 1-0

[Event "Istanbul Open 2017"]
[Site "Istanbul"]
[Date "2017.09.12"]
[Round "2"]
[White "Alashtar, Yousef"]
[Black "Kilic, Eray"]
[Result "0-1"]
[ECO "A00"]
[WhiteElo "1630"]
[BlackElo "1727"]
[Annotator "NA RC"]
[PlyCount "62"]
[EventDate "2017.??.??"]
[EventType "swiss"]
[EventCountry "TUR"]
[SourceTitle "playchess.com"]
[Source "ChessBase"]
[SourceQuality "1"]
[TimeControl "5400+30"]

1. g4 d5 2. Bg2 e5 3. c4 Bd6 4. Bxd5 Ne7 5. Qb3 Nxd5 6. cxd5 O-O 7. d3 c6 8. Nc3 cxd5 9. Qxd5 Nc6 10. Nf3 Be6 11. Qe4 Be7 12. h4 Nd4 {[%emt 1:13:30]} 13. Ng5 {[%emt 1:18:09]} f5 {[%emt 0:00:30]} 14. Qxe5 {[%emt 0:00:30]} Bf6 {[%emt 0:00:30]} 15. Nxe6 {[%emt 0:00:30]} Bxe5 {[%emt 0:00:30]} 16. Nxd8 {[%emt 0:00:30]} Raxd8 {[%emt 0:00:30]} 17. f4 {[%emt 0:00:35]} Bb8 {[%emt 0:00:30]} 18. O-O {[%emt 0:01:16]} fxg4 {[%emt 0:00:30]} 19. Ne4 {[%emt 0:01:03]} Nxe2+ {[%emt 0:00:00]} 20. Kf2 {[%emt 0:00:41]} Nxc1 {[%emt 0:02:00]} 21. Raxc1 {[%emt 0:00:35]} Rxd3 {[%emt 0:02:30]} 22. Ke2 {[%emt 0:01:43]} Rd4 {[%emt 0:00:00]} 23. Ke3 {[%emt 0:01:01]} Rb4 {[%emt 0:00:00]} 24. b3 {[%emt 0:00:16]} b5 {[%emt 0:00:30]} 25. Rcd1 {[%emt 0:01:31]} a6 {[%emt 0:00:30]} 26. a3 {[%emt 0:02:43]} Rxb3+ {[%emt 0:00:30]} 27. Rd3 {[%emt 0:00:05]} Bxf4+ {[%emt 0:00:00]} 28. Ke2 {[%emt 0:02:04]} Rb2+ {[%emt 0:00:00]} 29. Ke1 {[%emt 0:02:33]} g3 {[%emt 0:00:30]} 30. Rxf4 {[%emt 0:01:49]} Rxf4 {[%emt 0:00:30]} 31. Nxg3 {[%emt 0:00:17]} Rxh4 {[%emt 0:00:30]} 0-1